{"text_format":"3","workbook":"xlsx","n_sheets":6,"sheets":["Start","Dashboard","Uitgaven en inkomsten","Budgetrapport","Gegevenslijsten","Categoriedraaitabel"],"not_rendered":{"charts":3,"defined_names":23,"pivot_tables":2},"read":"whole","date_system":"1900"}

{"sheet":"Start","index":0,"n_rows":8,"n_cols":2,"rows_kept":8}
[null,"Over de sjabloon"]
[null,"Gebruik deze sjabloon om een halfjaarlijks huisbudget te maken."]
[null,"Het werkblad Dashboard bevat grafieken voor maandelijkse en jaarlijkse totalen en een tabel voor tweewekelijkse inkomsten en uitgaven."]
[null,"Voer categorieën in het werkblad Gegevenslijsten in en waarden in het werkblad Inkomsten en uitgaven."]
[null,"Vernieuw de draaitabel in het werkblad Budgetrapport."]
[null,"Opmerking:"]
[null,"In kolom A in alle werkbladen zijn aanvullende instructies beschikbaar. Deze tekst is opzettelijk verborgen. Als u tekst wilt verwijderen, selecteert u kolom A en drukt u op DELETE. "]
[null,"Als u meer wilt weten over een tabel, drukt u in de tabel op Shift en F10 en selecteert u de optie Tabel en vervolgens Alternatieve tekst. Als u meer wilt weten over een draaitabel, drukt u in de draaitabel op Shift en F10 en selecteert u Opties voor draaitabel en vervolgens het tabblad Alternatieve tekst."]

{"sheet":"Dashboard","index":1,"n_rows":12,"n_cols":15,"rows_kept":12,"merged":[[0,1,0,13],[1,2,1,7]]}
["Maak in dit werkblad een dashboard voor maandelijkse en jaartotalen en tweewekelijkse inkomsten en uitgaven. Cellen in deze kolom bevatten handige instructies voor het gebruik van dit werkblad. De titel van deze werkmap staat in de cel rechts en de werkbladtitel in cel O1.","Halfjaarlijks huisbudget",{"$nulls":12},"DASHBOARD"]
["Selecteer de schuifregelaar in cel C2 om de maand in de cel aan de rechterkant te wijzigen en als u het jaar in cel I2 wilt wijzigen, selecteert u de schuifregelaar in cel J2.",{"$f":"CHOOSE(MonthNumber,\"JANUARI\",\"FEBRUARI\",\"MAART\",\"APRIL\",\"MEI\",\"JUNI\",\"JULI\",\"AUGUSTUS\",\"SEPTEMBER\",\"OKTOBER\",\"NOVEMBER\",\"DECEMBER\")","v":"DECEMBER"},12,{"$nulls":5},2022]
["Het label Maandtotaal staat in de cel rechts en het label Jaartotaal in cel I3.","MAANDTOTAAL",{"$nulls":6},"JAARLIJKSE TOTALEN"]
["Een staafdiagram waarin totalen van maandelijkse inkomsten worden vergeleken met totalen van maandelijkse uitgaven, bevindt zich in cel C4 en een staafdiagram waarin totalen van jaarlijkse inkomsten worden vergeleken met totalen van jaarlijkse uitgaven, bevindt zich in cel J4. De volgende aanwijzing staat in cel A8.","INKOMSTEN",null,{"$f":"MonthlyExpendituresTotals","v":{"v":0,"d":"€ 0"}},{"$nulls":4},"INKOMSTEN",null,null,{"$f":"AnnualExpendituresTotals","v":{"v":10742,"d":"€ 10,742"}}]
[null,"UITGAVEN",null,{"$f":"MonthlyIncomeTotals","v":{"v":0,"d":"€ 0"}},{"$nulls":4},"UITGAVEN",null,null,{"$f":"AnnualIncomeTotals","v":{"v":13200,"d":"€ 13,200"}}]
[]
[]
["Dashboardtabel vanaf cel rechts wordt automatisch bijgewerkt.","Categorie","JANUARI","FEBRUARI","MAART","APRIL","MEI","JUNI","JULI","AUGUSTUS","SEPTEMBER","OKTOBER","NOVEMBER","DECEMBER","Sparkline"]
[null,"Inkomsten 1-15",{"$f":"SUMIFS(Inkomsten[BEDRAG],Inkomsten[DATUM],\"<=\"&DtMiddle,Inkomsten[DATUM],\">=\"&DtStart)","v":{"v":0,"d":"€ 0.00"}},{"$f":"SUMIFS(Inkomsten[BEDRAG],Inkomsten[DATUM],\"<=\"&DtMiddle,Inkomsten[DATUM],\">=\"&DtStart)","v":{"v":0,"d":"€ 0.00"}},{"$f":"SUMIFS(Inkomsten[BEDRAG],Inkomsten[DATUM],\"<=\"&DtMiddle,Inkomsten[DATUM],\">=\"&DtStart)","v":{"v":1300,"d":"€ 1,300.00"}},{"$f":"SUMIFS(Inkomsten[BEDRAG],Inkomsten[DATUM],\"<=\"&DtMiddle,Inkomsten[DATUM],\">=\"&DtStart)","v":{"v":3100,"d":"€ 3,100.00"}},{"$f":"SUMIFS(Inkomsten[BEDRAG],Inkomsten[DATUM],\"<=\"&DtMiddle,Inkomsten[DATUM],\">=\"&DtStart)","v":{"v":500,"d":"€ 500.00"}},{"$f":"SUMIFS(Inkomsten[BEDRAG],Inkomsten[DATUM],\"<=\"&DtMiddle,Inkomsten[DATUM],\">=\"&DtStart)","v":{"v":0,"d":"€ 0.00"}},{"$f":"SUMIFS(Inkomsten[BEDRAG],Inkomsten[DATUM],\"<=\"&DtMiddle,Inkomsten[DATUM],\">=\"&DtStart)","v":{"v":0,"d":"€ 0.00"}},{"$f":"SUMIFS(Inkomsten[BEDRAG],Inkomsten[DATUM],\"<=\"&DtMiddle,Inkomsten[DATUM],\">=\"&DtStart)","v":{"v":0,"d":"€ 0.00"}},{"$f":"SUMIFS(Inkomsten[BEDRAG],Inkomsten[DATUM],\"<=\"&DtMiddle,Inkomsten[DATUM],\">=\"&DtStart)","v":{"v":0,"d":"€ 0.00"}},{"$f":"SUMIFS(Inkomsten[BEDRAG],Inkomsten[DATUM],\"<=\"&DtMiddle,Inkomsten[DATUM],\">=\"&DtStart)","v":{"v":0,"d":"€ 0.00"}},{"$f":"SUMIFS(Inkomsten[BEDRAG],Inkomsten[DATUM],\"<=\"&DtMiddle,Inkomsten[DATUM],\">=\"&DtStart)","v":{"v":0,"d":"€ 0.00"}},{"$f":"SUMIFS(Inkomsten[BEDRAG],Inkomsten[DATUM],\"<=\"&DtMiddle,Inkomsten[DATUM],\">=\"&DtStart)","v":{"v":0,"d":"€ 0.00"}}]
[null,"Inkomsten 16-EOM",{"$f":"SUMIFS(Inkomsten[BEDRAG],Inkomsten[DATUM],\"<=\"&DtEnd,Inkomsten[DATUM],\">=\"&DtMiddle+1)","v":{"v":0,"d":"€ 0.00"}},{"$f":"SUMIFS(Inkomsten[BEDRAG],Inkomsten[DATUM],\"<=\"&DtEnd,Inkomsten[DATUM],\">=\"&DtMiddle+1)","v":{"v":0,"d":"€ 0.00"}},{"$f":"SUMIFS(Inkomsten[BEDRAG],Inkomsten[DATUM],\"<=\"&DtEnd,Inkomsten[DATUM],\">=\"&DtMiddle+1)","v":{"v":5700,"d":"€ 5,700.00"}},{"$f":"SUMIFS(Inkomsten[BEDRAG],Inkomsten[DATUM],\"<=\"&DtEnd,Inkomsten[DATUM],\">=\"&DtMiddle+1)","v":{"v":2600,"d":"€ 2,600.00"}},{"$f":"SUMIFS(Inkomsten[BEDRAG],Inkomsten[DATUM],\"<=\"&DtEnd,Inkomsten[DATUM],\">=\"&DtMiddle+1)","v":{"v":0,"d":"€ 0.00"}},{"$f":"SUMIFS(Inkomsten[BEDRAG],Inkomsten[DATUM],\"<=\"&DtEnd,Inkomsten[DATUM],\">=\"&DtMiddle+1)","v":{"v":0,"d":"€ 0.00"}},{"$f":"SUMIFS(Inkomsten[BEDRAG],Inkomsten[DATUM],\"<=\"&DtEnd,Inkomsten[DATUM],\">=\"&DtMiddle+1)","v":{"v":0,"d":"€ 0.00"}},{"$f":"SUMIFS(Inkomsten[BEDRAG],Inkomsten[DATUM],\"<=\"&DtEnd,Inkomsten[DATUM],\">=\"&DtMiddle+1)","v":{"v":0,"d":"€ 0.00"}},{"$f":"SUMIFS(Inkomsten[BEDRAG],Inkomsten[DATUM],\"<=\"&DtEnd,Inkomsten[DATUM],\">=\"&DtMiddle+1)","v":{"v":0,"d":"€ 0.00"}},{"$f":"SUMIFS(Inkomsten[BEDRAG],Inkomsten[DATUM],\"<=\"&DtEnd,Inkomsten[DATUM],\">=\"&DtMiddle+1)","v":{"v":0,"d":"€ 0.00"}},{"$f":"SUMIFS(Inkomsten[BEDRAG],Inkomsten[DATUM],\"<=\"&DtEnd,Inkomsten[DATUM],\">=\"&DtMiddle+1)","v":{"v":0,"d":"€ 0.00"}},{"$f":"SUMIFS(Inkomsten[BEDRAG],Inkomsten[DATUM],\"<=\"&DtEnd,Inkomsten[DATUM],\">=\"&DtMiddle+1)","v":{"v":0,"d":"€ 0.00"}}]
[null,"Uitgaven 1-15",{"$f":"SUMIFS(Uitgaven[BEDRAG],Uitgaven[DATUM],\"<=\"&DtMiddle+1,Uitgaven[DATUM],\">=\"&DtStart)","v":{"v":0,"d":"€ 0.00"}},{"$f":"SUMIFS(Uitgaven[BEDRAG],Uitgaven[DATUM],\"<=\"&DtMiddle+1,Uitgaven[DATUM],\">=\"&DtStart)","v":{"v":0,"d":"€ 0.00"}},{"$f":"SUMIFS(Uitgaven[BEDRAG],Uitgaven[DATUM],\"<=\"&DtMiddle+1,Uitgaven[DATUM],\">=\"&DtStart)","v":{"v":150,"d":"€ 150.00"}},{"$f":"SUMIFS(Uitgaven[BEDRAG],Uitgaven[DATUM],\"<=\"&DtMiddle+1,Uitgaven[DATUM],\">=\"&DtStart)","v":{"v":75,"d":"€ 75.00"}},{"$f":"SUMIFS(Uitgaven[BEDRAG],Uitgaven[DATUM],\"<=\"&DtMiddle+1,Uitgaven[DATUM],\">=\"&DtStart)","v":{"v":2492,"d":"€ 2,492.00"}},{"$f":"SUMIFS(Uitgaven[BEDRAG],Uitgaven[DATUM],\"<=\"&DtMiddle+1,Uitgaven[DATUM],\">=\"&DtStart)","v":{"v":0,"d":"€ 0.00"}},{"$f":"SUMIFS(Uitgaven[BEDRAG],Uitgaven[DATUM],\"<=\"&DtMiddle+1,Uitgaven[DATUM],\">=\"&DtStart)","v":{"v":0,"d":"€ 0.00"}},{"$f":"SUMIFS(Uitgaven[BEDRAG],Uitgaven[DATUM],\"<=\"&DtMiddle+1,Uitgaven[DATUM],\">=\"&DtStart)","v":{"v":0,"d":"€ 0.00"}},{"$f":"SUMIFS(Uitgaven[BEDRAG],Uitgaven[DATUM],\"<=\"&DtMiddle+1,Uitgaven[DATUM],\">=\"&DtStart)","v":{"v":0,"d":"€ 0.00"}},{"$f":"SUMIFS(Uitgaven[BEDRAG],Uitgaven[DATUM],\"<=\"&DtMiddle+1,Uitgaven[DATUM],\">=\"&DtStart)","v":{"v":0,"d":"€ 0.00"}},{"$f":"SUMIFS(Uitgaven[BEDRAG],Uitgaven[DATUM],\"<=\"&DtMiddle+1,Uitgaven[DATUM],\">=\"&DtStart)","v":{"v":0,"d":"€ 0.00"}},{"$f":"SUMIFS(Uitgaven[BEDRAG],Uitgaven[DATUM],\"<=\"&DtMiddle+1,Uitgaven[DATUM],\">=\"&DtStart)","v":{"v":0,"d":"€ 0.00"}}]
[null,"Uitgaven van 16 EOM",{"$f":"SUMIFS(Uitgaven[BEDRAG],Uitgaven[DATUM],\"<=\"&DtEnd,Uitgaven[DATUM],\">=\"&DtMiddle+1)","v":{"v":0,"d":"€ 0.00"}},{"$f":"SUMIFS(Uitgaven[BEDRAG],Uitgaven[DATUM],\"<=\"&DtEnd,Uitgaven[DATUM],\">=\"&DtMiddle+1)","v":{"v":1075,"d":"€ 1,075.00"}},{"$f":"SUMIFS(Uitgaven[BEDRAG],Uitgaven[DATUM],\"<=\"&DtEnd,Uitgaven[DATUM],\">=\"&DtMiddle+1)","v":{"v":5350,"d":"€ 5,350.00"}},{"$f":"SUMIFS(Uitgaven[BEDRAG],Uitgaven[DATUM],\"<=\"&DtEnd,Uitgaven[DATUM],\">=\"&DtMiddle+1)","v":{"v":1600,"d":"€ 1,600.00"}},{"$f":"SUMIFS(Uitgaven[BEDRAG],Uitgaven[DATUM],\"<=\"&DtEnd,Uitgaven[DATUM],\">=\"&DtMiddle+1)","v":{"v":0,"d":"€ 0.00"}},{"$f":"SUMIFS(Uitgaven[BEDRAG],Uitgaven[DATUM],\"<=\"&DtEnd,Uitgaven[DATUM],\">=\"&DtMiddle+1)","v":{"v":0,"d":"€ 0.00"}},{"$f":"SUMIFS(Uitgaven[BEDRAG],Uitgaven[DATUM],\"<=\"&DtEnd,Uitgaven[DATUM],\">=\"&DtMiddle+1)","v":{"v":0,"d":"€ 0.00"}},{"$f":"SUMIFS(Uitgaven[BEDRAG],Uitgaven[DATUM],\"<=\"&DtEnd,Uitgaven[DATUM],\">=\"&DtMiddle+1)","v":{"v":0,"d":"€ 0.00"}},{"$f":"SUMIFS(Uitgaven[BEDRAG],Uitgaven[DATUM],\"<=\"&DtEnd,Uitgaven[DATUM],\">=\"&DtMiddle+1)","v":{"v":0,"d":"€ 0.00"}},{"$f":"SUMIFS(Uitgaven[BEDRAG],Uitgaven[DATUM],\"<=\"&DtEnd,Uitgaven[DATUM],\">=\"&DtMiddle+1)","v":{"v":0,"d":"€ 0.00"}},{"$f":"SUMIFS(Uitgaven[BEDRAG],Uitgaven[DATUM],\"<=\"&DtEnd,Uitgaven[DATUM],\">=\"&DtMiddle+1)","v":{"v":0,"d":"€ 0.00"}},{"$f":"SUMIFS(Uitgaven[BEDRAG],Uitgaven[DATUM],\"<=\"&DtEnd,Uitgaven[DATUM],\">=\"&DtMiddle+1)","v":{"v":0,"d":"€ 0.00"}}]

{"sheet":"Uitgaven en inkomsten","index":2,"n_rows":36,"n_cols":9,"rows_kept":36,"merged":[[0,1,0,6],[0,7,0,8]]}
["Maak een lijst met inkomsten en uitgaven in dit werkblad. Cellen in deze kolom bevatten handige instructies voor het gebruik van dit werkblad. De titel van de werkmap staat in de cel rechts en de werkbladtitel in cel H1.",{"$f":"Semi_Monthly_Home_Budget_Title","v":"Halfjaarlijks huisbudget"},{"$nulls":5},"INKOMSTEN EN UITGAVEN"]
["Het label Inkomsten staat in de cel aan de rechterkant en het label Uitgaven in cel F2.","INKOMSTEN",{"$nulls":3},"UITGAVEN"]
["Voer details in de tabel Inkomsten in, beginnend in de cel aan de rechterkant en in de tabel Uitgaven, vanaf cel F3.","DATUM","OMSCHRIJVING","BEDRAG",null,"DATUM","CATEGORIE","OMSCHRIJVING","BEDRAG"]
[null,{"$f":"TODAY()","v":"2022-05-12"},"Bonus",{"v":500,"d":"€ 500.00"},null,{"$f":"TODAY()","v":"2022-05-12"},"Medisch","Verzekering",{"v":500,"d":"€ 500.00"}]
[null,{"$f":"TODAY()-14","v":"2022-04-28"},"David's salaris",{"v":1300,"d":"€ 1,300.00"},null,{"$f":"TODAY()-7","v":"2022-05-05"},"Huishouden","Hypotheek",{"v":1000,"d":"€ 1,000.00"}]
[null,{"$f":"TODAY()-14","v":"2022-04-28"},"Pat's salaris",{"v":1300,"d":"€ 1,300.00"},null,"2022-05-05","Huishouden","Elektriciteit",{"v":100,"d":"€ 100.00"}]
[null,{"$f":"TODAY()-28","v":"2022-04-14"},"David's salaris",{"v":1500,"d":"€ 1,500.00"},null,"2022-05-05","Huishouden","Water/riolering",{"v":50,"d":"€ 50.00"}]
[null,{"$f":"TODAY()-28","v":"2022-04-14"},"Pat's salaris",{"v":1600,"d":"€ 1,600.00"},null,"2022-05-05","Huishouden","Afval",{"v":25,"d":"€ 25.00"}]
[null,{"$f":"TODAY()-42","v":"2022-03-31"},"David's salaris",{"v":1300,"d":"€ 1,300.00"},null,"2022-05-05","Huishouden","Mobiele telefoon",{"v":100,"d":"€ 100.00"}]
[null,{"$f":"TODAY()-42","v":"2022-03-31"},"Pat's salaris",{"v":1300,"d":"€ 1,300.00"},null,"2022-05-05","Huishouden","Mobiele telefoon",{"v":30,"d":"€ 30.00"}]
[null,{"$f":"TODAY()-56","v":"2022-03-17"},"David's salaris",{"v":1500,"d":"€ 1,500.00"},null,"2022-05-05","Huishouden","Hypotheek",{"v":50,"d":"€ 50.00"}]
[null,{"$f":"TODAY()-56","v":"2022-03-17"},"Pat's salaris",{"v":1600,"d":"€ 1,600.00"},null,"2022-05-05","Huishouden","Mobiele telefoon",{"v":50,"d":"€ 50.00"}]
[null,{"$f":"TODAY()-70","v":"2022-03-03"},"David's salaris",{"v":1300,"d":"€ 1,300.00"},null,{"$f":"TODAY()-7","v":"2022-05-05"},"Huishouden","Mobiele telefoon",{"v":25,"d":"€ 25.00"}]
[{"$nulls":5},{"$f":"TODAY()-8","v":"2022-05-04"},"Huishouden","Elektriciteit",{"v":100,"d":"€ 100.00"}]
[{"$nulls":5},{"$f":"TODAY()-9","v":"2022-05-03"},"Amusement","Films",{"v":37,"d":"€ 37.00"}]
[{"$nulls":5},{"$f":"TODAY()-10","v":"2022-05-02"},"Eten en drinken","Boodschappen",{"v":350,"d":"€ 350.00"}]
[{"$nulls":5},{"$f":"TODAY()-11","v":"2022-05-01"},"Eten en drinken","Uit eten",{"v":75,"d":"€ 75.00"}]
[{"$nulls":5},{"$f":"TODAY()-12","v":"2022-04-30"},"Kinderen","Lunchgeld",{"v":150,"d":"€ 150.00"}]
[{"$nulls":5},{"$f":"TODAY()-13","v":"2022-04-29"},"Investeringsrekeningen","Spaargeld",{"v":250,"d":"€ 250.00"}]
[{"$nulls":5},{"$f":"TODAY()-14","v":"2022-04-28"},"Investeringsrekeningen","Investeringsrekening",{"v":250,"d":"€ 250.00"}]
[{"$nulls":5},{"$f":"TODAY()-15","v":"2022-04-27"},"Persoonlijk","Gezondheid en fitness",{"v":100,"d":"€ 100.00"}]
[{"$nulls":5},{"$f":"TODAY()-16","v":"2022-04-26"},"Huisdieren","Eten en drinken",{"v":50,"d":"€ 50.00"}]
[{"$nulls":5},{"$f":"TODAY()-20","v":"2022-04-22"},"Huisdieren","Verzorging",{"v":50,"d":"€ 50.00"}]
[{"$nulls":5},{"$f":"TODAY()-20","v":"2022-04-22"},"Huisdieren","Overig",{"v":50,"d":"€ 50.00"}]
[{"$nulls":5},{"$f":"TODAY()-25","v":"2022-04-17"},"Vervoer","Auto 1 Betaling ",{"v":300,"d":"€ 300.00"}]
[{"$nulls":5},{"$f":"TODAY()-25","v":"2022-04-17"},"Vervoer","Auto 2 Betaling ",{"v":350,"d":"€ 350.00"}]
[{"$nulls":5},{"$f":"TODAY()-25","v":"2022-04-17"},"Vervoer","Autoverzekering",{"v":50,"d":"€ 50.00"}]
[{"$nulls":5},{"$f":"TODAY()-30","v":"2022-04-12"},"Vervoer","Brandstof",{"v":50,"d":"€ 50.00"}]
[{"$nulls":5},{"$f":"TODAY()-31","v":"2022-04-11"},"Vervoer","Brandstof",{"v":25,"d":"€ 25.00"}]
[{"$nulls":5},{"$f":"TODAY()-42","v":"2022-03-31"},"Vervoer","Auto 2 Betaling ",{"v":150,"d":"€ 150.00"}]
[{"$nulls":5},{"$f":"TODAY()-45","v":"2022-03-28"},"Huishouden","Hypotheek",{"v":5000,"d":"€ 5,000.00"}]
[{"$nulls":5},{"$f":"TODAY()-50","v":"2022-03-23"},"Huishouden","Elektriciteit",{"v":200,"d":"€ 200.00"}]
[{"$nulls":5},{"$f":"TODAY()-65","v":"2022-03-08"},"Huishouden","Mobiele telefoon",{"v":100,"d":"€ 100.00"}]
[{"$nulls":5},{"$f":"TODAY()-70","v":"2022-03-03"},"Huishouden","Afval",{"v":50,"d":"€ 50.00"}]
[{"$nulls":5},{"$f":"TODAY()-75","v":"2022-02-26"},"Huishouden","Hypotheek",{"v":1000,"d":"€ 1,000.00"}]
[{"$nulls":5},{"$f":"TODAY()-78","v":"2022-02-23"},"Amusement","Films",{"v":75,"d":"€ 75.00"}]

{"sheet":"Budgetrapport","index":3,"n_rows":26,"n_cols":6,"rows_kept":26,"merged":[[0,1,0,4],[1,1,1,3]]}
["Maak een budgetrapport in dit werkblad. Cellen in deze kolom bevatten handige instructies voor het gebruik van dit werkblad. De titel van de werkmap staat in de cel rechts en de werkbladtitel in cel F1.",{"$f":"Semi_Monthly_Home_Budget_Title","v":"Halfjaarlijks huisbudget"},{"$nulls":3},"BUDGETRAPPORT"]
["Selecteer Jaren, Kwartalen, Maanden of Dagen en gebruik de schuifregelaar in de cel rechts om de draaitabel Uitgaven voor de geselecteerde periode te selecteren. Categorie-slicer om draaitabelgegevens te filteren bevindt zich in cel E2 en de beschrijving-slicer in cel F2.","De tijdlijn voor het filteren staat in deze cel.",null,null,"Deze cel staat in de slicer om draaitabelgegevens te filteren op basis van Categorie.","De slicer voor het filteren van draaitabelgegevens op basis van Beschrijving wordt in deze cel weergegeven."]
["De tip staat in de cel rechts.","Druk Shift+F10 in de draaitabel met uitgaven en selecteer vervolgens Vernieuwen om de gegevens op dit blad bij te werken. Selecteer Vernieuwen onder tabblad analyseren."]
["Het label Uitgaven staat in de cel aan de rechterkant.","UITGAVEN"]
["De draaitabel met de onkosten begint in de cel aan de rechterkant. Categorietotaallabel staat in cel D4.","Rijlabels","Som van BEDRAG"]
["Cirkeldiagram waarin elk categorietotaal wordt vergeleken, staat in cel D6.","Auto 1 Betaling ",{"v":300,"d":"€ 300.00"}]
[null,"Auto 2 Betaling ",{"v":500,"d":"€ 500.00"}]
[null,"Afval",{"v":75,"d":"€ 75.00"}]
[null,"Autoverzekering",{"v":50,"d":"€ 50.00"}]
[null,"Boodschappen",{"v":350,"d":"€ 350.00"}]
[null,"Brandstof",{"v":75,"d":"€ 75.00"}]
[null,"Elektriciteit",{"v":400,"d":"€ 400.00"}]
[null,"Eten en drinken",{"v":50,"d":"€ 50.00"}]
[null,"Films",{"v":112,"d":"€ 112.00"}]
[null,"Gezondheid en fitness",{"v":100,"d":"€ 100.00"}]
[null,"Hypotheek",{"v":7050,"d":"€ 7,050.00"}]
[null,"Investeringsrekening",{"v":250,"d":"€ 250.00"}]
[null,"Lunchgeld",{"v":150,"d":"€ 150.00"}]
[null,"Mobiele telefoon",{"v":305,"d":"€ 305.00"}]
[null,"Overig",{"v":50,"d":"€ 50.00"}]
[null,"Spaargeld",{"v":250,"d":"€ 250.00"}]
[null,"Uit eten",{"v":75,"d":"€ 75.00"}]
[null,"Verzekering",{"v":500,"d":"€ 500.00"}]
[null,"Verzorging",{"v":50,"d":"€ 50.00"}]
[null,"Water/riolering",{"v":50,"d":"€ 50.00"}]
[null,"Eindtotaal",{"v":10742,"d":"€ 10,742.00"}]

{"sheet":"Gegevenslijsten","index":4,"n_rows":8,"n_cols":13,"rows_kept":8,"merged":[[0,1,0,11]]}
["Voer categoriegegevens in dit werkblad in om de vervolgkeuzelijsten in de tabel Uitgaven op het werkblad Uitgaven en inkomsten te vullen. Wijzig de categorienamen of -beschrijvingen onder elke categorie om de lijsten bij te werken. Cellen in deze kolom bevatten handige instructies voor het gebruik van dit werkblad. De titel van de werkmap staat in de cel rechts en de werkbladtitel in cel M1.",{"$f":"Semi_Monthly_Home_Budget_Title","v":"Halfjaarlijks huisbudget"},{"$nulls":10},"GEGEVENSLIJSTEN"]
["De tip staat in de cel rechts.","SETUP         De onderstaande categoriegegevens worden ingevuld in de vervolgkeuzelijsten in de tabel Uitgaven op het blad Uitgaven en inkomsten. Wijzig de categorienamen of de beschrijvingen onder elke categorie om de lijsten bij te werken."]
["Typ of wijzig categorienamen of -beschrijvingen onder elke categorie in de tabel, beginnend in de cel aan de rechterkant.","Huishouden","Amusement","Eten en drinken","Donaties","Kinderen","Investeringsrekeningen","Medisch","Overig","Persoonlijk","Huisdieren","Belastingen/juridisch","Vervoer"]
[null,"Hypotheek","Films","Boodschappen","Liefdadigheid 1","Kleding","Pensioenfonds","Arts/kliniek","Overig","Kleding","Eten en drinken","Overheid","Auto 1 Betaling "]
[null,"Elektriciteit","Video/films","Uit eten","Liefdadigheid 2","Speelgoed","Spaargeld","Verzekering","Bijdragen aan organisaties","Haar/nagels","Benodigdheden","Provincie","Auto 2 Betaling "]
[null,"Water/riolering","Muziek",null,"Liefdadigheid 3","Lunchgeld","Lopende rekening",null,null,"Stomerij","Medisch","Gemeente","Autoverzekering"]
[null,"Afval","Concerten/theater",null,"Donatie","Verschuldigde bedragen/kosten","Pensioen",null,null,"Gezondheid en fitness","Verzorging","Overig","Licenties/registratie"]
[null,"Mobiele telefoon","Sportevenementen",null,null,"Studiebenodigdheden","Investeringsrekening",null,null,"Winkelen","Overig","Advocaat","Brandstof"]

{"sheet":"Categoriedraaitabel","index":5,"n_rows":13,"n_cols":13,"rows_kept":13,"hidden":true}
[null,"Halfjaarlijks huisbudget",{"$nulls":10},"CATEGORIEPIVOT"]
[null,"Deze draaitabel is de gegevensbron voor de draaigrafiek categorietotalen in het budgetrapport. "]
[null,"Rijlabels","Som van BEDRAG"]
[null,"Amusement",{"v":112,"d":"€ 112"}]
[null,"Eten en drinken",{"v":425,"d":"€ 425"}]
[null,"Huisdieren",{"v":150,"d":"€ 150"}]
[null,"Huishouden",{"v":7880,"d":"€ 7,880"}]
[null,"Investeringsrekeningen",{"v":500,"d":"€ 500"}]
[null,"Kinderen",{"v":150,"d":"€ 150"}]
[null,"Medisch",{"v":500,"d":"€ 500"}]
[null,"Persoonlijk",{"v":100,"d":"€ 100"}]
[null,"Vervoer",{"v":925,"d":"€ 925"}]
[null,"Eindtotaal",{"v":10742,"d":"€ 10,742"}]